bitfinex/quotes_BTCUSD_20251226
["timestamp","ask_amount","ask_price","bid_price","bid_amount"]
[1766719299696,0.0112591,88817.0,88803.0,0.01126088]
[1766719299906,0.06755448,88818.0,88803.0,0.01126088]
[1766719300339,0.0112591,88817.0,88804.0,0.01126075]
[1766719300603,0.01125885,88819.0,88805.0,0.01126062]
[1766719300979,0.9271,88818.0,88806.0,0.0112605]
[1766719301188,0.01136,88817.0,88806.0,0.0112605]
[1766719301725,0.01125935,88815.0,88798.0,0.01136]
[1766719302012,0.01125973,88812.0,88797.0,0.01126164]
[1766719302237,0.000107,88800.0,88794.0,0.01126202]
[1766719302407,0.000107,88800.0,88793.0,0.01126214]
[1766719302609,0.93835986,88811.0,88791.0,0.0789334]
[1766719302610,0.01136,88808.0,88799.0,0.01126138]
[1766719302765,0.01136,88808.0,88796.0,0.01126176]
[1766719302971,0.01136,88808.0,88797.0,0.01126164]
[1766719303266,0.01136,88808.0,88798.0,0.01126151]
[1766719303725,0.00010778,88812.0,88803.0,0.01126088]
[1766719303883,0.01136,88811.0,88803.0,0.0563044]
[1766719304077,0.01136,88811.0,88804.0,0.01126075]
[1766719304279,0.01136,88811.0,88806.0,0.0112605]
[1766719304519,0.01136,88811.0,88805.0,0.01126062]
[1766719305039,0.00010778,88812.0,88806.0,0.0112605]
[1766719305240,0.00010778,88812.0,88806.0,0.06756289]
[1766719305444,0.0675482,88826.0,88808.0,0.06756136]
[1766719305599,0.01136,88825.0,88814.0,0.01125948]
[1766719305786,0.01136,88825.0,88808.0,0.01126024]
[1766719305787,0.00044222,88814.0,88808.0,0.01126024]
[1766719305984,0.00010786,88814.0,88806.0,0.0112605]
[1766719306183,0.00010786,88814.0,88804.0,0.01126075]
[1766719306427,0.00010786,88814.0,88805.0,0.01126062]
[1766719306633,0.01125973,88812.0,88799.0,0.01136]
[1766719306829,0.01125973,88812.0,88797.0,0.01126164]
[1766719306830,0.000549,88805.0,88797.0,0.01126164]
[1766719307045,0.66305,88812.0,88798.0,0.06756902]
[1766719307347,0.64043,88809.0,88795.0,0.01126189]
[1766719307502,0.01136,88808.0,88799.0,0.01126138]
[1766719307711,0.01136,88807.0,88802.0,0.011261]
[1766719307917,0.01136,88807.0,88800.0,0.01126126]
[1766719308114,0.01136734,88814.0,88802.0,0.011261]
[1766719308115,0.01136,88812.0,88802.0,0.011261]
[1766719308520,0.01136,88812.0,88798.0,0.01126151]
[1766719308721,0.01136,88812.0,88798.0,0.0675686]
[1766719308925,0.01136,88812.0,88799.0,0.05630645]
[1766719309125,0.01136,88812.0,88798.0,0.0675686]
[1766719309126,0.01125986,88811.0,88798.0,0.01126151]
[1766719309456,0.01136,88812.0,88801.0,0.01126113]
[1766719309800,0.01136,88812.0,88800.0,0.01126126]
[1766719309988,0.01136,88812.0,88801.0,0.01126113]
[1766719310194,0.01136,88812.0,88800.0,0.01126126]
[1766719310571,0.01136,88812.0,88801.0,0.01126113]
[1766719310773,0.02261973,88812.0,88798.0,0.01126151]
[1766719310976,0.45293,88812.0,88798.0,0.06756901]
[1766719311384,0.45293,88812.0,88800.0,0.06756756]
[1766719311596,0.01136,88812.0,88802.0,0.011261]
[1766719311758,0.00010786,88814.0,88803.0,0.01126088]
[1766719311960,0.01136,88813.0,88803.0,0.01126088]
[1766719312161,0.02261961,88813.0,88800.0,0.01126126]
[1766719312362,0.01125973,88812.0,88799.0,0.01126138]
[1766719312553,0.02261961,88813.0,88800.0,0.01126126]
[1766719312758,0.42671961,88813.0,88797.0,0.06756931]
[1766719313006,0.41546,88813.0,88796.0,0.05630861]
[1766719313210,0.01125986,88811.0,88798.0,0.01126151]
[1766719313444,0.31401,88808.0,88785.0,0.22526315]
[1766719313673,0.31401,88808.0,88791.0,1.1e-07]
[1766719313883,0.31401,88808.0,88797.0,0.01126164]
[1766719314053,0.31401,88808.0,88798.0,0.01126151]
[1766719314256,0.31401,88808.0,88796.0,0.06757018]
[1766719314398,0.31401,88808.0,88795.0,0.01126189]
[1766719314894,0.31401,88808.0,88793.0,0.06757262]
[1766719314895,0.01155,88806.0,88794.0,0.01126202]
[1766719315108,0.01155,88806.0,88792.0,0.01126227]
[1766719315413,0.01155,88806.0,88791.0,0.01126251]
[1766719315414,0.01126075,88804.0,88791.0,0.0112624]
[1766719315635,0.01126088,88803.0,88790.0,0.01126252]
[1766719315836,0.01126088,88803.0,88788.0,0.06767348]
[1766719316048,0.01126138,88799.0,88778.0,0.22527859]
[1766719316243,0.01126138,88799.0,88777.0,0.79232]
[1766719316244,0.01136,88798.0,88780.0,0.01136]
[1766719316544,0.01136,88798.0,88789.0,0.01126265]
[1766719316746,0.01136,88798.0,88780.0,0.01136]
[1766719316747,0.01344199,88801.0,88784.0,0.01126329]
[1766719316919,0.01344199,88801.0,88781.0,4e-06]
[1766719316920,0.01136,88800.0,88781.0,4e-06]
[1766719317119,0.01136,88800.0,88785.0,0.05631524]
[1766719317383,0.02262126,88800.0,88786.0,0.01126303]
[1766719317569,0.02262126,88800.0,88784.0,0.01126329]
[1766719317570,0.01126151,88798.0,88784.0,0.01126329]
[1766719317781,0.01344199,88799.0,88779.0,0.01126392]
[1766719317934,0.01344199,88799.0,88773.0,0.01136]
[1766719317935,0.01126202,88794.0,88773.0,0.01136]
[1766719318120,0.01136,88793.0,88779.0,0.01126392]
[1766719318325,0.01126227,88792.0,88773.0,0.02262468]
[1766719318525,0.01136,88793.0,88783.0,0.01126341]
[1766719318731,0.01136,88793.0,88784.0,0.01126329]
[1766719318952,0.01136,88793.0,88783.0,0.01126341]
[1766719319572,0.01136,88793.0,88784.0,0.01126329]
[1766719319775,0.01136,88793.0,88783.0,0.01126341]
[1766719320434,0.00770168,88792.0,88787.0,0.01126291]
[1766719320636,0.00055,88787.0,88776.0,0.0112643]
[1766719320839,0.01136,88792.0,88773.0,0.01136]
[1766719321042,0.01136,88791.0,88782.0,0.05631718]
[1766719321155,0.01136,88791.0,88781.0,0.01126367]
[1766719321364,0.01136,88791.0,88779.0,0.01126392]
[1766719321620,0.01136,88791.0,88776.0,0.0112643]
[1766719321818,0.01146782,88791.0,88790.0,0.00024493]
[1766719322023,0.01146782,88791.0,88780.0,0.01126379]
[1766719322259,0.000304,88780.0,88778.0,0.01126405]
[1766719322474,0.00010782,88791.0,88783.0,0.01126341]
[1766719322689,0.01136,88788.0,88784.0,0.01126329]
[1766719322856,0.01136,88788.0,88781.0,0.01126367]
[1766719323061,0.00010782,88791.0,88782.0,0.01126354]
[1766719323234,0.01136,88790.0,88782.0,0.01126354]
[1766719323984,0.01136,88790.0,88784.0,0.01126329]
[1766719324264,0.01136,88790.0,88782.0,0.01126354]
[1766719324870,0.01136,88790.0,88777.0,0.01126417]
[1766719325129,0.01136,88790.0,88775.0,0.01126443]
[1766719325333,0.01344199,88785.0,88769.0,0.01126519]
[1766719325463,0.000551,88775.0,88767.0,0.01136]
[1766719325667,0.01126291,88787.0,88772.0,0.01126481]
[1766719325864,0.01126291,88787.0,88773.0,0.01126468]
[1766719326066,0.01344199,88785.0,88769.0,0.01126519]
[1766719326291,0.01126316,88785.0,88770.0,0.05632533]
[1766719326493,0.01126291,88787.0,88772.0,0.01126481]
[1766719326725,0.01126291,88787.0,88773.0,0.01126468]
[1766719327410,0.01136,88786.0,88769.0,0.01126519]
[1766719327764,0.02262303,88786.0,88772.0,0.01126481]
[1766719327992,0.01136,88786.0,88773.0,0.01126468]
[1766719328187,0.01126316,88785.0,88782.0,0.00024497]
[1766719328344,0.02262303,88786.0,88782.0,9.7e-07]
[1766719328545,0.01126329,88784.0,88770.0,0.01126506]
[1766719328758,0.4023841,88780.0,88765.0,0.0112657]
[1766719328996,0.01126354,88782.0,88763.0,0.01126595]
[1766719329198,0.4023841,88780.0,88774.0,0.01126455]
[1766719329401,0.011118,88779.0,88773.0,0.01126468]
[1766719329613,0.06757372,88792.0,88779.0,0.00055]
[1766719329780,0.01126176,88796.0,88783.0,0.01126341]
[1766719329781,0.01136,88790.0,88783.0,0.01126341]
[1766719330010,0.01126189,88795.0,88782.0,0.01126354]
[1766719330362,0.01136,88789.0,88782.0,0.01126354]
[1766719330637,0.01344199,88795.0,88785.0,0.01126316]
[1766719330842,0.01136,88790.0,88785.0,0.01126316]
[1766719331058,0.01344199,88795.0,88785.0,0.01126316]
[1766719331263,0.01146782,88791.0,88781.0,0.01126367]
[1766719331465,0.000549,88781.0,88774.0,0.01126455]
[1766719331667,0.000549,88781.0,88769.0,0.01126519]
[1766719331876,0.01136,88782.0,88769.0,0.01126519]
[1766719332080,0.01344199,88781.0,88769.0,0.01126519]
[1766719332412,0.01344199,88781.0,88770.0,0.01126506]
[1766719332644,0.01344199,88781.0,88769.0,0.01126519]
[1766719332857,0.000549,88769.0,88761.0,0.0112662]
[1766719333061,0.000549,88769.0,88760.0,0.01126633]
[1766719333264,0.000549,88769.0,88762.0,0.01126608]
[1766719333621,0.01136,88773.0,88763.0,0.01126595]
[1766719333778,0.01136,88773.0,88770.0,0.01126506]
[1766719333987,0.04504,88792.0,88778.0,0.01126405]
[1766719334192,0.04504,88792.0,88777.0,0.01126417]
[1766719334193,0.01136,88790.0,88777.0,0.01126417]
[1766719334398,0.00010782,88791.0,88779.0,0.01126392]
[1766719334591,0.00010782,88791.0,88774.0,0.01150955]
[1766719334592,0.00010782,88791.0,88782.0,0.01126354]
[1766719334837,0.01136,88790.0,88782.0,0.01126354]
[1766719335966,0.00010782,88791.0,88783.0,0.00112479]
[1766719336173,0.01136,88790.0,88778.0,0.01126405]
[1766719336366,0.000549,88783.0,88775.0,0.06758655]
[1766719336591,0.000549,88783.0,88780.0,0.01126379]
[1766719336730,0.01136,88790.0,88780.0,0.01126379]
[1766719337147,0.01136,88790.0,88783.0,0.01126341]
[1766719337350,0.00010782,88791.0,88788.0,0.01126278]
[1766719337552,0.01136,88805.0,88799.0,0.01126138]
[1766719337759,0.02470134,88815.0,88802.0,0.011261]
[1766719338027,0.01125923,88816.0,88802.0,0.011261]
[1766719338299,0.01136,88814.0,88801.0,0.01126113]
[1766719338611,0.01136,88814.0,88802.0,0.011261]
[1766719338925,0.01136,88817.0,88808.0,0.01126024]
[1766719339109,0.01136,88817.0,88809.0,0.01126012]
[1766719339494,0.01136,88817.0,88808.0,0.01126024]
[1766719339896,0.01136,88818.0,88807.0,0.01126037]
[1766719340097,0.01146792,88818.0,88806.0,0.0112605]
[1766719340349,0.01146792,88818.0,88807.0,0.01126037]
[1766719340555,0.01146792,88818.0,88808.0,0.01126024]
[1766719341119,0.01146792,88818.0,88806.0,0.0112605]
[1766719341863,0.01146792,88818.0,88807.0,0.01126037]
[1766719342096,0.01146792,88818.0,88802.0,0.05630476]
[1766719342097,0.000549,88807.0,88801.0,0.01126113]
[1766719342297,0.000549,88807.0,88803.0,0.01126088]
[1766719342447,0.02272689,88818.0,88804.0,0.01126075]
[1766719342615,0.01125935,88815.0,88802.0,0.011261]
[1766719343042,0.02470134,88815.0,88800.0,0.01126126]
[1766719343255,0.01125961,88813.0,88800.0,0.01126126]
[1766719343690,0.01125973,88812.0,88799.0,0.01126138]
[1766719344114,0.01125948,88814.0,88801.0,0.01126113]
[1766719344347,0.06755737,88814.0,88798.0,0.01126151]
[1766719344579,0.000549,88798.0,88786.0,0.78570792]
[1766719344786,0.000549,88798.0,88795.0,0.01126189]
[1766719345016,0.01136,88806.0,88793.0,0.05631027]
[1766719345262,0.01136,88806.0,88786.0,0.71813]
[1766719345263,0.01136,88806.0,88797.0,0.01126164]
[1766719345623,0.01136,88806.0,88796.0,0.01126176]
[1766719345827,0.01136,88806.0,88798.0,0.01126151]
[1766719346021,0.01136,88806.0,88799.0,0.01126138]
[1766719346251,0.01136,88806.0,88803.0,0.01126088]
[1766719346445,0.01136,88806.0,88804.0,0.00046561]
[1766719346602,0.00010792,88818.0,88804.0,0.01172636]
[1766719346814,0.0226191,88817.0,88804.0,0.00046561]
[1766719347026,0.00010792,88818.0,88806.0,0.05630197]
[1766719347304,0.0226191,88817.0,88804.0,0.01172636]
[1766719347547,0.01136689,88818.0,88804.0,0.00046561]
[1766719347548,0.01344199,88815.0,88804.0,0.00046561]
[1766719347724,0.02470134,88815.0,88804.0,0.00046561]
[1766719347930,0.01125948,88814.0,88804.0,0.00046561]
[1766719348133,0.01125961,88813.0,88804.0,0.00046561]
[1766719348333,0.06755711,88814.0,88804.0,0.00046561]
[1766719348529,0.01125973,88812.0,88804.0,0.00046561]
[1766719348729,0.01125961,88813.0,88804.0,0.00046561]
[1766719348932,0.01125948,88814.0,88804.0,0.00046561]
[1766719349132,0.02470134,88815.0,88804.0,0.00046561]
[1766719349342,0.01344199,88815.0,88804.0,0.00046561]
[1766719350224,0.01344199,88815.0,88804.0,0.01172636]
[1766719350425,0.02470134,88815.0,88804.0,0.00046561]
[1766719350650,0.01125948,88814.0,88800.0,0.01126126]
[1766719350849,0.01126252,88790.0,88769.0,0.01126519]
[1766719350999,0.01344199,88787.0,88774.0,0.01150955]
[1766719351180,0.01136,88789.0,88775.0,0.01126443]
[1766719351576,0.010811,88789.0,88777.0,0.05632085]
[1766719351744,0.010811,88789.0,88774.0,0.714065]
[1766719351745,0.010811,88789.0,88780.0,0.01126379]
[1766719351976,0.010811,88789.0,88777.0,0.05632089]
[1766719352149,0.010811,88789.0,88780.0,0.01126379]
[1766719352366,0.010811,88789.0,88778.0,0.06758391]
[1766719352367,0.01117059,88789.0,88778.0,0.06758391]
[1766719352507,0.01117059,88789.0,88779.0,0.01126392]
[1766719352688,0.01117059,88789.0,88778.0,0.06758391]
[1766719352902,0.01117059,88789.0,88779.0,0.01126392]
[1766719354003,0.00035959,88789.0,88786.0,0.01126303]
[1766719354202,0.00035959,88789.0,88786.0,0.06757821]
[1766719354412,0.00035959,88789.0,88784.0,0.01126329]
[1766719354612,0.00035959,88789.0,88785.0,0.01126316]
[1766719354807,0.00035959,88789.0,88786.0,0.01126303]
[1766719355249,0.00035959,88789.0,88785.0,0.01126316]
[1766719355907,0.00035959,88789.0,88783.0,0.01126341]
[1766719356111,0.00035959,88789.0,88784.0,0.01126329]
[1766719356268,0.00035959,88789.0,88780.0,0.05631843]
[1766719356469,0.00035959,88789.0,88782.0,0.01126354]
[1766719356678,0.00035959,88789.0,88780.0,0.05631843]
[1766719356882,0.00035959,88789.0,88781.0,0.06758161]
[1766719357081,0.00035959,88789.0,88781.0,0.01126367]
[1766719357281,0.01162224,88789.0,88776.0,0.0112643]
[1766719357667,0.00035959,88789.0,88775.0,0.06758614]
[1766719358333,0.01162224,88789.0,88775.0,0.06758614]
[1766719358537,0.00035959,88789.0,88774.0,0.05656743]
[1766719358738,0.00035959,88789.0,88775.0,0.05632171]
[1766719359163,0.01162224,88789.0,88776.0,0.0112643]
[1766719359375,0.01162224,88789.0,88777.0,0.01126417]
[1766719359521,0.00035959,88789.0,88777.0,0.01126417]
[1766719360336,0.05667305,88789.0,88775.0,0.01126443]
[1766719360531,0.01162224,88789.0,88776.0,0.0112643]
[1766719360736,0.00035959,88789.0,88776.0,0.0112643]
[1766719360936,0.00035959,88789.0,88776.0,0.06758576]
[1766719361131,0.00035959,88789.0,88774.0,0.05656743]
[1766719361394,0.01162224,88789.0,88772.0,4.68e-06]
[1766719361919,0.01162224,88789.0,88777.0,0.01126417]
[1766719362156,0.00035959,88789.0,88777.0,0.01126417]
[1766719362360,0.00035959,88789.0,88776.0,0.0112643]
[1766719362952,0.00035959,88789.0,88777.0,0.01126417]
[1766719363796,0.01162224,88789.0,88775.0,0.06758611]
[1766719364163,0.00035959,88789.0,88777.0,0.01126417]
[1766719364363,0.00035959,88789.0,88781.0,0.01126367]
[1766719364578,0.00035959,88789.0,88779.0,0.01126392]
[1766719364768,0.00035959,88789.0,88775.0,0.01126443]
[1766719364965,0.00035959,88789.0,88774.0,0.02262455]
[1766719364966,0.01126278,88788.0,88774.0,0.02262455]
[1766719365417,0.01162224,88789.0,88776.0,0.0112643]
[1766719365726,0.01126278,88788.0,88776.0,0.0112643]
[1766719365915,0.00035959,88789.0,88776.0,0.0112643]
[1766719366144,0.00035959,88789.0,88778.0,0.01126405]
[1766719366473,0.00035959,88789.0,88784.0,0.01126329]
[1766719366851,0.00035959,88789.0,88783.0,0.01126341]
[1766719367154,0.00035959,88789.0,88785.0,0.01126316]
[1766719367512,0.00035959,88789.0,88784.0,0.01126329]
[1766719367713,0.00035959,88789.0,88783.0,0.01126341]
[1766719367911,0.06756953,88798.0,88779.0,0.68801924]
[1766719367912,0.01344199,88800.0,88790.0,0.01126252]
[1766719368113,0.05630215,88807.0,88790.0,0.00010792]
[1766719368114,0.01136,88799.0,88790.0,0.00010792]
[1766719368315,0.01136,88799.0,88790.0,0.01137044]
[1766719368539,0.01136,88799.0,88791.0,0.0112624]
[1766719368738,0.01136,88799.0,88792.0,0.01126227]
[1766719369322,0.01126037,88807.0,88794.0,0.01126202]
[1766719369583,0.01136,88804.0,88793.0,0.01126214]
[1766719369770,0.01136,88804.0,88794.0,0.01126202]
[1766719369971,0.01126024,88808.0,88795.0,0.01126189]
[1766719370134,0.22517475,88820.0,88799.0,0.05630635]
[1766719370135,0.01136,88807.0,88799.0,0.05630635]
[1766719370334,0.01136,88806.0,88801.0,0.01126113]
[1766719370789,0.01136,88806.0,88802.0,0.011261]
[1766719371348,0.01136,88808.0,88801.0,0.01126113]
[1766719371552,0.01136,88811.0,88801.0,0.01126113]
[1766719371854,0.01136,88811.0,88800.0,0.01126126]
[1766719371855,0.01136,88811.0,88802.0,0.011261]
[1766719372121,0.23642072,88825.0,88803.0,0.01126088]
[1766719372320,0.01136,88824.0,88807.0,0.01126037]
[1766719372517,0.01125872,88820.0,88808.0,0.01126024]
[1766719372718,0.01125872,88820.0,88807.0,0.01126037]
[1766719372921,0.01125872,88820.0,88808.0,0.01126024]
[1766719373311,0.01125872,88820.0,88806.0,0.0112605]
[1766719373510,0.01125872,88820.0,88807.0,0.01126037]
[1766719373838,0.01125872,88820.0,88805.0,0.0675633]
[1766719373839,0.01125885,88819.0,88806.0,0.0112605]
[1766719373979,0.01125872,88820.0,88807.0,0.01126037]
[1766719374499,0.01125872,88820.0,88744.0,0.00948119]
[1766719374500,0.01126291,88787.0,88744.0,0.00948119]
[1766719374732,0.01126367,88781.0,88766.0,0.01126557]
[1766719374902,0.01126354,88782.0,88767.0,0.01126544]
[1766719375101,0.01126367,88781.0,88766.0,0.01126557]
[1766719375476,0.05630227,88792.0,88768.0,0.01126532]
[1766719375655,0.05630227,88792.0,88770.0,0.01126506]
[1766719375656,0.01126341,88783.0,88770.0,0.01126506]
[1766719375885,0.01126354,88782.0,88769.0,0.01126519]
[1766719376082,0.01126367,88781.0,88768.0,0.01126532]
[1766719376515,0.01126379,88780.0,88767.0,0.01126544]
[1766719376817,0.01126367,88781.0,88768.0,0.01126532]
[1766719377355,0.01126379,88780.0,88767.0,0.01126544]
[1766719377559,0.01126392,88779.0,88767.0,0.01126544]
[1766719377766,0.01136,88778.0,88765.0,0.0112657]
[1766719377994,0.01136,88778.0,88767.0,0.01126544]
[1766719378193,0.02262405,88778.0,88766.0,0.01126557]
[1766719378659,0.01136,88778.0,88766.0,0.01126557]
[1766719378827,0.02262405,88778.0,88766.0,0.01126557]
[1766719379030,0.01136,88778.0,88766.0,0.01126557]
[1766719379362,0.01136,88778.0,88767.0,0.01126544]
[1766719379565,0.01136,88778.0,88764.0,0.01126582]
[1766719379566,0.02262405,88778.0,88764.0,0.01126582]
[1766719379770,0.01126417,88777.0,88764.0,0.01126582]
[1766719379923,0.02262405,88778.0,88764.0,0.01126582]
[1766719379924,0.02262405,88778.0,88765.0,0.0112657]
[1766719380120,0.05631753,88783.0,88769.0,0.01126519]
[1766719380328,0.01126367,88781.0,88766.0,0.01126557]
[1766719380548,0.07894184,88782.0,88766.0,0.01126557]
[1766719380733,0.07894184,88782.0,88767.0,0.01126544]
[1766719380947,0.01126392,88779.0,88766.0,0.01126557]
[1766719381172,0.01126367,88781.0,88766.0,0.06759301]
[1766719381375,0.01136,88782.0,88769.0,0.01126519]
[1766719381600,0.0112643,88776.0,88759.0,0.01126646]
[1766719381799,0.000549,88769.0,88758.0,0.01126659]
[1766719381972,0.05632391,88773.0,88759.0,0.01126646]
[1766719382194,0.01126481,88772.0,88760.0,0.01126633]
[1766719382381,0.02480199,88775.0,88757.0,0.06759971]
[1766719382382,0.01136,88775.0,88761.0,0.0112662]
[1766719382580,0.01136,88775.0,88762.0,0.01126608]
[1766719383136,0.01136,88775.0,88765.0,0.0112657]
[1766719383283,0.01136,88775.0,88763.0,0.01126595]
[1766719383487,0.02262443,88775.0,88763.0,0.01126595]
[1766719383695,0.01136,88775.0,88764.0,0.01126582]
[1766719384031,0.01136,88775.0,88763.0,0.01126595]
[1766719384588,0.01136,88775.0,88764.0,0.65999]
[1766719384996,0.02262443,88775.0,88764.0,0.65999]
[1766719385193,0.02262443,88775.0,88754.0,0.01182668]
[1766719385194,0.01126532,88768.0,88754.0,0.01182668]
[1766719385419,0.05632945,88764.0,88754.0,0.00055959]
[1766719385618,0.0112657,88765.0,88754.0,0.00055959]
[1766719385817,0.01126595,88763.0,88754.0,0.00055959]
[1766719386023,0.01126608,88762.0,88754.0,0.00055959]
[1766719386220,0.01126633,88760.0,88754.0,9.59e-06]
[1766719386420,0.01136,88761.0,88754.0,9.59e-06]
[1766719386421,0.0226262,88761.0,88754.0,9.59e-06]
[1766719386661,0.01126633,88760.0,88754.0,9.59e-06]
[1766719386797,0.0226262,88761.0,88754.0,9.59e-06]
[1766719387204,0.01126633,88760.0,88754.0,9.59e-06]
[1766719387410,1e-08,88758.0,88754.0,9.59e-06]
[1766719387767,0.01126671,88757.0,88754.0,9.59e-06]
[1766719388305,0.0247087,88757.0,88754.0,9.59e-06]
[1766719388505,0.0810429,88757.0,88754.0,9.59e-06]
[1766719388788,0.05633473,88756.0,88754.0,9.59e-06]
[1766719388964,0.01126773,88749.0,88746.0,0.65999]
[1766719389280,0.01136,88748.0,88744.0,0.66947119]
[1766719389875,0.01136,88748.0,88744.0,0.00948119]
[1766719390049,0.01126798,88747.0,88744.0,0.00948119]
[1766719390376,0.06770106,88746.0,88744.0,1.19e-06]
[1766719390595,0.01136004,88746.0,88744.0,1.19e-06]
[1766719391641,0.0563412,88745.0,88744.0,1.19e-06]
[1766719392355,0.01136004,88746.0,88739.0,0.65999]
[1766719392356,9.206e-05,88746.0,88739.0,0.65999]
[1766719392562,1.28e-06,88749.0,88745.0,0.661089]
[1766719392767,0.02262785,88748.0,88738.0,0.65999]
[1766719392996,0.01126798,88747.0,88738.0,0.65999]
[1766719393247,0.01126798,88747.0,88732.0,0.01126989]
[1766719393248,0.01344199,88742.0,88729.0,0.67126027]
[1766719393377,0.011269,88739.0,88729.0,0.65999]
[1766719393589,0.01126925,88737.0,88729.0,0.65999]
[1766719393817,0.01126925,88737.0,88736.0,0.00116379]
[1766719394026,0.01126912,88738.0,88736.0,0.00116379]
[1766719394294,0.01126925,88737.0,88729.0,0.65999]
[1766719394495,0.01126912,88738.0,88729.0,0.65999]
[1766719394910,0.01126912,88738.0,88726.0,0.01127065]
[1766719394911,0.02471061,88742.0,88738.0,0.57868]
[1766719395069,0.011269,88739.0,88727.0,0.57868]
[1766719395414,0.02262874,88741.0,88729.0,0.57868]
[1766719395415,0.01126887,88740.0,88729.0,0.57868]
[1766719395662,0.02262874,88741.0,88729.0,0.57868]
[1766719395820,0.01126912,88738.0,88729.0,0.57868]
[1766719396151,0.40205945,88740.0,88729.0,0.57868]
[1766719396358,0.01126824,88745.0,88740.0,0.000549]
[1766719396525,0.01344199,88741.0,88732.0,0.57868]
[1766719397309,0.01126887,88740.0,88732.0,0.57868]
[1766719397510,0.011269,88739.0,88732.0,0.57868]
[1766719397728,0.01126887,88740.0,88732.0,0.57868]
[1766719398105,0.01344199,88741.0,88732.0,0.57868]
[1766719399321,0.01289299,88741.0,88737.0,0.00113316]
[1766719399522,0.01289299,88741.0,88732.0,0.57868]
[1766719399725,0.01136,88740.0,88732.0,0.57868]
[1766719399925,0.01289299,88741.0,88732.0,0.57868]
[1766719400124,0.01136,88739.0,88732.0,0.57868]
[1766719401415,0.01126697,88755.0,88740.0,0.57868]
[1766719401562,0.01136,88748.0,88742.0,0.57868]
[1766719402215,0.01136,88748.0,88745.0,0.57868]
[1766719402748,0.01081,88748.0,88745.0,0.57868]
[1766719402894,0.01136,88747.0,88745.0,0.57868]
[1766719403546,0.01126722,88753.0,88745.0,0.57868]
[1766719403873,0.01136,88748.0,88745.0,0.57868]
[1766719404520,0.01136,88747.0,88743.0,0.57868]
[1766719404720,0.01136,88746.0,88740.0,0.57972126]
[1766719404894,0.01136,88746.0,88738.0,0.01126912]
[1766719404895,0.01136,88746.0,88741.0,0.57868]
[1766719405100,0.01136,88746.0,88745.0,0.00088811]
[1766719406213,0.010811,88746.0,88745.0,0.57956811]
[1766719406409,1e-06,88746.0,88745.0,0.57956811]
[1766719407509,1e-06,88746.0,88745.0,0.57901911]
[1766719407713,0.013442,88758.0,88745.0,0.57901911]
[1766719407926,0.01136,88749.0,88746.0,0.57868]
[1766719408531,0.0697747,88759.0,88744.0,0.57868]
[1766719408671,0.01136,88758.0,88749.0,0.579229]
[1766719409060,0.01126684,88756.0,88749.0,0.579229]
[1766719409265,0.01136,88757.0,88749.0,0.57868]
[1766719409482,0.01126659,88758.0,88749.0,0.57868]
[1766719409708,0.01136,88756.0,88749.0,0.57868]
[1766719411021,0.02262684,88756.0,88749.0,0.57868]
[1766719411239,0.02262684,88756.0,88744.0,0.01137618]
[1766719411240,0.01344199,88759.0,88751.0,0.01126747]
[1766719411382,0.01136,88755.0,88752.0,0.5558]
[1766719411971,0.01136,88755.0,88743.0,0.56706849]
[1766719412209,0.01136,88755.0,88745.0,0.01126824]
[1766719412389,0.01136,88755.0,88745.0,0.56706824]
[1766719412592,0.01136,88755.0,88745.0,0.5558]
[1766719413188,0.01136,88755.0,88748.0,0.00024756]
[1766719413393,0.02262697,88755.0,88748.0,0.00024756]
[1766719413609,0.01126722,88753.0,88748.0,0.00024756]
[1766719413824,0.01126709,88754.0,88748.0,0.00024756]
[1766719414225,0.01136,88755.0,88748.0,0.00024756]
[1766719414630,0.02262697,88755.0,88748.0,0.00024756]
[1766719414829,0.01136,88755.0,88748.0,0.00024756]
[1766719415032,0.01344199,88753.0,88748.0,0.00024756]
[1766719415598,0.01289299,88753.0,88748.0,0.55604756]
[1766719415946,0.01136,88754.0,88748.0,0.55604756]
[1766719416530,0.01136,88753.0,88748.0,0.55604756]
[1766719416736,0.02470858,88758.0,88748.0,0.00024756]
[1766719416899,0.0675976,88761.0,88749.0,0.01126773]
[1766719417101,0.01126519,88769.0,88754.0,0.56706709]
[1766719417321,0.02170589,88768.0,88757.0,0.5558]
[1766719417540,0.02170589,88768.0,88757.0,0.555251]
[1766719417541,0.0112657,88765.0,88757.0,0.555251]
[1766719417718,0.06759304,88767.0,88757.0,0.555251]
[1766719417918,0.02262557,88766.0,88757.0,0.555251]
[1766719418139,0.01136,88766.0,88758.0,0.01126659]
[1766719418342,0.01126481,88772.0,88760.0,0.5558]
[1766719418540,0.01126506,88770.0,88760.0,0.5558]
[1766719418861,0.02989345,88786.0,88773.0,0.5558]
[1766719419066,0.02989345,88794.0,88775.0,0.56706443]
[1766719419275,0.01126278,88788.0,88780.0,0.5358]
[1766719419422,0.01126291,88787.0,88780.0,0.5358]
[1766719419829,0.01126303,88786.0,88780.0,0.5358]
[1766719420023,0.01126316,88785.0,88780.0,0.53590782]
[1766719420366,0.01126316,88785.0,88780.0,0.53535782]
[1766719420565,0.06758049,88783.0,88780.0,0.00010782]
[1766719422046,0.05631826,88782.0,88780.0,0.00010782]
[1766719422396,0.06758049,88783.0,88780.0,0.00010782]
[1766719422782,0.01126341,88783.0,88780.0,0.00010782]
[1766719423016,0.05631772,88782.0,88780.0,0.00010782]
[1766719423281,0.01126341,88783.0,88780.0,0.00010782]
[1766719424680,0.01136,88785.0,88780.0,0.00010782]
[1766719425076,0.01126303,88786.0,88780.0,0.00010782]
[1766719425275,0.02262291,88787.0,88780.0,0.00010782]
[1766719426062,0.01126303,88786.0,88780.0,0.00010782]
[1766719426317,0.01126316,88785.0,88780.0,0.00010782]
[1766719426520,0.01126329,88784.0,88780.0,0.00010782]
[1766719426844,0.01126316,88785.0,88780.0,0.00010782]
[1766719427257,0.01126341,88783.0,88780.0,0.00010782]
[1766719428097,0.01344199,88782.0,88780.0,0.00010782]
[1766719430308,0.02470515,88785.0,88780.0,0.00010782]
[1766719430531,0.01126341,88783.0,88780.0,0.00010782]
[1766719430799,0.02470515,88785.0,88780.0,0.00010782]
[1766719430956,0.01126341,88783.0,88780.0,0.00010782]
[1766719431645,0.06758404,88779.0,88767.0,0.01136]
[1766719431856,0.0112643,88776.0,88767.0,0.01136]
[1766719432071,0.01126443,88775.0,88765.0,0.01136]
[1766719432274,0.0112643,88776.0,88765.0,0.0226257]
[1766719432472,0.01126443,88775.0,88765.0,0.01136]
[1766719432692,0.01344199,88771.0,88761.0,0.0112662]
[1766719432911,0.01344199,88771.0,88763.0,0.01126595]
[1766719433307,0.01126443,88775.0,88763.0,0.01126595]
[1766719433308,0.0112643,88776.0,88763.0,0.06759566]
[1766719433509,0.01126405,88778.0,88765.0,0.0112657]